Cogmind - Beta 16 @@@ ROGUE MODE // 2025.12.10 @ 19:30:22 Player: the Result: Destroyed by as-29834 with Assembled Rifle Performance ------------- Evolutions (0) 0 Regions Visited (2) 400 Robots Destroyed (36) 180 Value Destroyed (587) 587 Prototype IDs (4) 80 Alien Tech Used (0) 0 Bonus (0) 0 TOTAL SCORE: 1247 Bonus ------- None Cogmind --------- Core Integrity 0/250 Matter 300/300 Energy 123/125 System Corruption 0% Temperature Cool (4) Movement Flying (37) Location -10/Mines Parts ------- > --- POWER (1) -------- Light Ion Engine > --- PROPULSION (2) --- Flight Unit Flight Unit > --- UTILITY (2) ------ Seismic Detector > --- WEAPON (2) ------- Light Assault Rifle Light Assault Rifle > --- INVENTORY (5) ---- Large Storage Unit High-capacity Storage Unit Tractor Beam Rocket Launcher Mining Laser Peak State ------------ > --- POWER ------------ Light Ion Engine > --- PROPULSION ------- Aluminum Leg Aluminum Leg > --- UTILITY ---------- Large Storage Unit Seismic Detector > --- WEAPON ----------- Medium Laser Medium Laser > --- INVENTORY -------- Ion Engine Light Treads Light Treads Light Treads Medium Storage Unit Seismic Detector Tractor Beam Small Laser Light Assault Rifle Mining Laser [Rating: 8] Favorites ----------- Power Ion Engine Engine Ion Engine Propulsion Light Treads Treads Light Treads Leg Aluminum Leg Flight Unit Flight Unit Utility Seismic Detector Device Seismic Detector Storage Large Storage Unit Weapon Medium Laser Energy Gun Medium Laser Ballistic Gun Light Assault Rifle Special Weapon Mining Laser Build | -11 -10 -10 ------- Run | Yrd Mat Min Slots Evolved . | . . . Power . | . . . Propulsion . | . . . Utility . | . . . Weapon . | . . . Parts Attached 31 | 9 10 12 Power 4 | 1 1 2 Engine 4 | 1 1 2 Core . | . . . Reactor . | . . . Propulsion 10 | 2 2 6 Treads 4 | . 2 2 Leg 2 | 2 . . Wheel . | . . . Hover . | . . . Flight 4 | . . 4 Utility 8 | 4 4 . Device 5 | 3 2 . Storage 3 | 1 2 . Processor . | . . . Hackware . | . . . Protection . | . . . Artifact . | . . . Weapon 9 | 2 3 4 Energy Gun 3 | 1 2 . Energy Cannon . | . . . Ballistic Gun 5 | 1 . 4 Ballistic Cannon . | . . . Launcher . | . . . Special Weapon 1 | . 1 . Impact Weapon . | . . . Slashing Weapon . | . . . Piercing Weapon . | . . . Special Melee Weapon . | . . . Unidentified Prototypes . | . . . Parts Lost 7 | . . 7 Power 1 | . . 1 Propulsion 3 | . . 3 Utility 1 | . . 1 Weapon 2 | . . 2 Highest Loss Streak 5 | . . 5 To Critical Strikes . | . . . Average Backups 7 | 4 8 4 Power . | . 1 . Propulsion 1 | 1 1 . Utility 1 | . 2 2 Weapon 3 | 1 3 2 Tool/Special . | . . . Unused Backups 6 | . . 6 Power . | . . . Propulsion 1 | . . 1 Utility 2 | . . 2 Weapon 3 | . . 3 Tool/Special . | . . . Average Slot Usage (%) 98 | . 100 90 Engine 14 | . 14 14 Treads 20 | . 22 16 Leg 4 | . 5 . Flight 1 | . . 8 Device 13 | . 14 12 Storage 13 | . 14 9 Energy Gun 20 | . 25 2 Ballistic Gun 7 | . 2 25 Peak Build Rating 8 | 7 8 7 Average Rating 6 | 5 7 6 On Entrance 4 | . 7 7 Avg Prop Armor Cover (%) 14 | 14 . . Naked Turns . | . . . Heaviest Build 30 | 11 30 30 Greatest Support 40 | 20 40 40 Greatest Overweight (x) 2 | 2 . 1 Average Overweight (x) . | . . . Largest Inventory Capacity 15 | 8 15 15 Average Capacity 13 | 7 13 11 Most Carried 10 | 8 10 9 Average Carried 7 | 4 8 4 Final Capacity 15 | 8 15 5 Final Carried 9 | 7 9 5 Class Distribution -------------------- 95% | Mutant 4% | Scavenger-Mutant Dominant Class ---------------- Mutant | -10/Materials Mutant | -10/Mines Resources | -11 -10 -10 ----------- Run | Yrd Mat Min Matter Collected 585 | 304 118 163 Remotely . | . . . Salvage Created 942 | 179 547 216 Parts 81 | 16 43 22 Haulers Intercepted 2 | . 2 . Recyclers Shooed 1 | 1 . . Parts Field Recycled . | . . . Retrieved Matter . | . . . Parts Self-Destructed . | . . . Prevented . | . . . Parts Restored . | . . . Kills | -11 -10 -10 ------- Run | Yrd Mat Min Combat Hostiles Destroyed 24 | . 15 9 Guns 24 | . 15 9 Classes Destroyed 8 | 2 6 . Worker 2 | . 2 . Tunneler 4 | 4 . . Hauler 2 | . 2 . Recycler 1 | 1 . . Mechanic 1 | . 1 . Watcher 2 | . 2 . Swarmer 15 | . 9 6 Grunt 9 | . 6 3 Best Kill Streak 7 | 5 7 3 Combat Bots Only 5 | . 5 3 Max Kills in Single Turn 2 | 1 2 2 Gunslinging 1 | . 1 1 Exploded . | . . . Melee . | . . . Uniques/NPCs Destroyed . | . . . Combat | -11 -10 -10 -------- Run | Yrd Mat Min Hostile Shots Fired 149 | . 62 87 Missed 39 | . 21 18 Hits 110 | . 41 69 Projectile 110 | . 41 69 Critical Strikes 4 | . 1 3 Damage Taken 1245 | . 423 822 Core 260 | . 136 124 Absorbed by Shields . | . . . Core Remaining (%) 100 | 100 . . Volleys Fired 109 | 14 58 37 Largest 2 | 2 2 2 Hottest 100 | 60 100 100 Shots Fired 217 | 28 115 74 Gun 216 | 28 114 74 Cannon . | . . . Launcher . | . . . Special 1 | . 1 . Kinetic 81 | 14 8 59 Thermal 136 | 14 107 15 Explosive . | . . . Electromagnetic . | . . . Robot Hit Streak 10 | 6 10 6 Robot Miss Streak 7 | 3 7 6 Penetration Max . | . . . Secondary Targets 6 | . 2 4 Max Gunslinging Chain 1 | . 1 1 Shots Hit Robots 121 | 18 65 38 Core Hits 61 | 8 32 21 Critical Kills . | . . . Critical Parts Destroyed 1 | . . 1 Critical Strikes 8 | . 6 2 Burn 7 | . 6 1 Destroy 1 | . . 1 Melee Attacks . | . . . Impact . | . . . Slashing . | . . . Piercing . | . . . Sneak Attacks . | . . . Combat Hostiles . | . . . Follow-up Attacks . | . . . Damage Inflicted 1470 | 176 951 343 Guns 1381 | 176 862 343 Cannons . | . . . Explosions 52 | . 52 . Melee . | . . . Ramming 37 | . 37 . Kinetic 383 | 79 66 238 Thermal 1050 | 97 848 105 Explosive . | . . . Electromagnetic . | . . . Impact . | . . . Slashing . | . . . Piercing . | . . . Highest Corruption . | . . . Average Corruption . | . . . Corruption Purged . | . . . Corruption Blocked . | . . . Overload Shots . | . . . Overflow Damage . | . . . Projectiles . | . . . Explosions . | . . . Melee . | . . . Knockbacks . | . . . Impact . | . . . Kinetic . | . . . Secondary . | . . . Self-Inflicted Damage . | . . . Shots . | . . . Rammed 7 | . 7 . Targets Rammed 7 | . 7 . Kicked . | . . . Crushed . | . . . Highest Temperature 384 | 80 339 384 Average Temperature 109 | 37 87 237 Received Heat Transfer 549 | . 126 423 Effects 1 | . . 1 Energy Bleed 1 | . . 1 Siege Activations . | . . . Martial Activations . | . . . Shielding Activations . | . . . Robots Disrupted . | . . . Combat Hostiles . | . . . Robots Corrupted . | . . . Combat Hostiles . | . . . Parts Fried . | . . . Impact Corruptions . | . . . Robots Melted . | . . . Combat Hostiles . | . . . Parts Melted 6 | . 5 1 Heat Transferred 3336 | 225 2741 370 Parts Sabotaged . | . . . Parts Stolen . | . . . Parts Stripped . | . . . Power Chain Reactions . | . . . Alert | -11 -10 -10 ------- Run | Yrd Mat Min Maximum Alert Level . | . . . Low Security (%) 100 | 100 100 100 Level 1 . | . . . Level 2 . | . . . Level 3 . | . . . Level 4 . | . . . Level 5 . | . . . High Security . | . . . Max Security . | . . . Peak Influence 181 | 10 181 120 Initial 60 | . . 60 Average 70 | 1 78 58 Influence Increases 788 | 25 523 240 Destroy 0b10 Robot/C 480 | . 300 180 Destroy 0b10 Robot/NC 60 | 25 35 . Destroy Leader 78 | . 48 30 Successful Hack 27 | . 27 . Disable Machine 30 | . 30 . Destroy Structure 23 | . 23 . Lose Combat Pursuer 90 | . 60 30 Influence Decreases 766 | 25 368 373 Entered New Map 95 | . . 95 Time Decay 591 | 25 368 198 Lost Part 70 | . . 70 Lost Ally 10 | . . 10 Squads Dispatched . | . . . Investigation . | . . . Extermination . | . . . Reinforcement . | . . . Assault . | . . . Garrison . | . . . Intercept . | . . . Searches Triggered . | . . . Construction Impeded . | . . . Haulers Reinforced . | . . . Active Scanning Responses . | . . . Cargo Convoy Interrupts . | . . . Stealth | -11 -10 -10 --------- Run | Yrd Mat Min Distress Signals 1 | . 1 . Communications Jammed . | . . . Distress Signals . | . . . Times Spotted 56 | . 35 21 Peak Tracking Total 20 | . 6 20 Tactical Retreats 3 | . 1 2 Traps | -11 -10 -10 ------- Run | Yrd Mat Min Traps Triggered . | . . . Indirectly . | . . . Trap Hack Attempts . | . . . Triggered . | . . . Disarmed . | . . . Reprogrammed . | . . . Reused . | . . . Traps Extracted . | . . . Installed . | . . . Triggered . | . . . Machines | -11 -10 -10 ---------- Run | Yrd Mat Min Machines Disabled 3 | . 3 . Max in Single Turn 2 | . 2 . Machines Repaired . | . . . Machines Dismantled . | . . . Machines Sabotaged . | . . . Overloaded Fab Kills . | . . . Hacking | -11 -10 -10 --------- Run | Yrd Mat Min Machines Accessed 8 | . 8 . Terminals 7 | . 7 . Fabricators . | . . . Repair Stations . | . . . Recycling Units 1 | . 1 . Scanalyzers . | . . . Garrison Access . | . . . Total Hacks 24 | . 24 . Successful 18 | . 18 . Failed 6 | . 6 . Catastrophic . | . . . Database Lockouts . | . . . Manual 17 | . 17 . Terminals 22 | . 22 . Fabricators . | . . . Repair Stations . | . . . Recycling Units 2 | . 2 . Scanalyzers . | . . . Garrison Access . | . . . Terminal Hacks 8 | . 8 . Part Schematic 1 | . 1 . Robot Analysis 4 | . 4 . Prototype ID Bank 2 | . 2 . Registered Components 1 | . 1 . Fabricator Hacks . | . . . Repair Station Hacks . | . . . Recycling Unit Hacks 1 | . 1 . Retrieve Components 1 | . 1 . Scanalyzer . | . . . Garrison Access Hacks . | . . . Unauthorized Hacks 9 | . 9 . Terminals 9 | . 9 . Assimilate 1 | . 1 . Botnet 2 | . 2 . Operators 1 | . 1 . Skim 5 | . 5 . Fabricators . | . . . Repair Stations . | . . . Recycling Units . | . . . Scanalyzers . | . . . Garrison Access . | . . . Data Cores Recovered . | . . . Used . | . . . Hacking Detections 8 | . 8 . Full Trace Events . | . . . Feedback Events . | . . . Feedback Blocked . | . . . Robot Schematics Acquired . | . . . Robots Built . | . . . Authchips . | . . . Time . | . . . Total Robot Build Rating . | . . . Part Schematics Acquired 1 | . 1 . Parts Built . | . . . Authchips . | . . . Time . | . . . Total Part Build Rating . | . . . Part Studies Acquired . | . . . Parts Repaired . | . . . Time . | . . . Parts Recycled . | . . . Recycled Matter . | . . . Retrieved Matter . | . . . Retrieved Components 6 | . 6 . Parts Scanalyzed . | . . . Part Schematics Acquired . | . . . Parts Damaged . | . . . Bothacking | -11 -10 -10 ------------ Run | Yrd Mat Min Used RIF Installer . | . . . Robots Hacked . | . . . Non-combat . | . . . Combat . | . . . Robot Hacks Applied . | . . . Relay Couplers Released . | . . . Fabnet Peak Effective % . | . . . Robots Rewired . | . . . Allies Hacked . | . . . Hacks Repelled . | . . . Allies | -11 -10 -10 -------- Run | Yrd Mat Min Total Allies 1 | . 1 . Largest Group 1 | . 1 . Highest-Rated Group 10 | . 10 . Highest-Rated Ally 10 | . 10 . Total Orders 4 | . 4 . STAY 2 | . 2 . FOLLOW 2 | . 2 . Ally Attacks . | . . . Total Damage . | . . . Kills . | . . . Allies Corrupted . | . . . Allies Melted . | . . . Intel | -11 -10 -10 ------- Run | Yrd Mat Min Active Infowar (turns) 1889 | 13 1507 369 Seismic 1889 | 13 1507 369 Robot Analysis Total 4 | . 4 . Derelict Logs Recovered 1 | . . 1 Drone Launches . | . . . Drone Recoveries . | . . . Exploration | -11 -10 -10 ------------- Run | Yrd Mat Min Turns Passed 2035 | 118 1507 410 Spaces Moved 1170 | 56 720 394 Core 24 | 24 . . Treads 693 | . 601 92 Legs 151 | 32 119 . Wheels . | . . . Hover . | . . . Flight 302 | . . 302 Fastest Speed 37 | 50 120 37 Average Speed 123 | 102 153 71 Slowest Speed 240 | 150 160 240 Overloaded Moves . | . . . Propulsion Burnouts . | . . . Robots Hopped . | . . . Potential Cave-ins . | . . . Cave-ins Triggered . | . . . Exploration Rate (%) 56 | 4 97 67 Regions Visited 2 Branch Regions 1 Pre-discovered Areas 1 | . . 1 Known Exits Taken 1 | . 1 . Unknown Exits Taken 1 | 1 . . Scrap Searched 3 | . . 3 Spaces Dug 1 | . 1 . Terrain Destroyed 23 | . 23 . Melee . | . . . Projectile 1 | . 1 . AOE 22 | . 22 . Terrain Rammed . | . . . Walls Destroyed . | . . . Machines Disabled . | . . . Actions | -11 -10 -10 --------- Run | Yrd Mat Min Total 1558 | 88 1002 468 Wait 196 | . 194 2 Move 1168 | 55 719 394 Hop . | . . . Pick Up 22 | 8 4 10 Fast Attach 7 | 7 . . Attach 10 | . 2 8 Detach 2 | . 1 1 Swap 17 | 2 10 5 Drop 20 | 2 7 11 Fire 109 | 14 58 37 Melee . | . . . Ram . | . . . Kick . | . . . Crush 7 | . 7 . Escape Stasis . | . . . Rewire . | . . . Trap . | . . . Miscellaneous . | . . . Route ------- -11/Scrapyard -10/Materials (discovered 4 exits: *Mat x3 / *Min) -10/Mines (discovered 2 exits: *Mat x2) History --------- Turn | Location | Event 9 | -11/Scrapyard | Discovered new exit (range 14) 119 | -11/Scrapyard | Entered Materials 312 | -10/Materials | Build established: Mutant 504 | -10/Materials | Discovered new exit (range 12) 718 | -10/Materials | Discovered new exit (range 15) 879 | -10/Materials | Loaded intel: 2 recycling unit locations 882 | -10/Materials | Core integrity fell below 50% 992 | -10/Materials | Discovered new exit (range 16) 1007 | -10/Materials | Learned 4 Subcaves zone layouts 1055 | -10/Materials | Identified exit to Mines 1136 | -10/Materials | Learned location of 1 exit from Recycling 1162 | -10/Materials | Learned Materials stockpile data 1198 | -10/Materials | Loaded intel: 17 trap records 1245 | -10/Materials | Learned 4 Subcaves zone layouts 1626 | -10/Materials | Entered Mines 1626 | -10/Mines | Accompanied by 1 ally 1627 | -10/Mines | Identified exit to Materials 1656 | -10/Mines | Core integrity fell below 20% 1687 | -10/Mines | Lost 5 parts (1p2n2w) 1867 | -10/Mines | Learned location of Zion (-6) 2020 | -10/Mines | Assembled infested the area 2025 | -10/Mines | Received a Rocket Launcher from a helpful Derelict 2036 | -10/Mines | Destroyed by as-29834 with Assembled Rifle Last Messages --------------- 02019_ A derelict emerges from the shadows. 02020_ ALERT: Infestation in the mines, dispatching Demolisher response squad. 02020_ Y3-CUT(g): "Some of my friends down here think you need a mining laser when you travel the depths." 02021_ Y3-CUT(g): "They are crazy." 02022_ Y3-CUT(g): "Everyone knows a good old rocket launcher goes a long way." 02023_ Y3-CUT(g): "Need to get rid of a swarm? Done. Need a big hole in the wall? Done." 02024_ Y3-CUT(g): "Need a small hole in the wall? Leave that to the mining laser wimps, I say!" 02025_ Y3-CUT(g): "Would you like a rocket launcher? I know I would if I were you, so I'm going to lend you mine." 02025_ Y3-CUT(g) slips back into the shadows. 02026_ Dropped Grenade Launcher. 02026_ Acquired Rocket Launcher. Map ----- +----------------------------------------------------+ | ????????????????????????????????????? | | ????????????????????????????????????? | | ????????????????????????????????????? | | ?????###????????????????????????????? | | ?????? ????????????????????????????? | | ?????? ???????????????????????????? | | ??????? #???###????????????????????? | | ???????? ### ##???????????????????? | | ????????? #???????????????????? | | ????????? #???????????????????? | | ?????????? #???????????????????? | | ???####???? ##??????????????????? | | ??## ##???# ##?????????????????? | | ??# ##### ##????????????????? | | ??# #????????????????? | | ???# ##### #????????????????? | | ??## a##??##### #????????????????? | | ?## ##??????? #???????????????? | | ?# ##??????? #??????????????? | | ?# ] ##???????? ??????????? | | ?## ##???????? ???????# | | ??# ###??????? ##??????# | | ??## ##????????#???????# | | ???###### #######?????????## | | ????????## ## ??????????? | | ?????????## @ ## ???????????? | | ??????????## ## #????????????? | | ???????????### !## #??????????????? | | ?????????????#%!## #???????????????? | | ?????????????# !## !#???????????????? | | ?????????????# ##% #???????????????? | | ?????????????# ##!]#???????????????? | | ?????????????# ## #?????????####??? | | ?????????????# ## ######???## ##?? | | ?????????????# ##### #?? | | ?????????????# #### ### | | ?????????????########??# ##### ## | | ???????????????????????# #????# | | ?????##????????????????# #????# | | ????## #???????????????# #???## ### | | ????# ##?????????????# #?### ##?? | | ????# ###???????????# ### #??? | | ?????# ##??????????#=## ##?? | | ??????# #??????????#=# ##? | | ??###### #??????????#%=! #? | | ?## #### #??????????#### ## ##? | | ?# #?# #?????????????#########?? | | ?# #?## ##???????????????????????? | | ?## ##?# #????????????????????????? | | ??# #?# #????????????????????????? | +----------------------------------------------------+ Best States ------------- Heat Dissipation 25 Energy Generation 10 Energy Capacity 250 Matter Stores 300 Matter Capacity 300 Sight Range 16 Terrain Scan Density 10 Evasion (%) 62 Recoil Reduction 2 Item Schematics ----------------- Hcp. Storage Unit | -10/Materials | Hacked Robot Schematics ------------------ None Fabricated ------------ Nothing Repaired ---------- Nothing Studied --------- None Alien Tech Used ----------------- None Achievements -------------- None Challenges ------------ None Game ------ Seed RestorationHardcellSpoofer Manual? 0 Play Time 00:16:48 Cumulative 456.5 hours Start 2025.12.10 @ 19:05:45 End 2025.12.10 @ 19:30:22 Sessions 3 Manual Loads 0 Difficulty Rogue Special Mode None Game No. 282 Rogue 282 Adventurer 0 Explorer 0 Win Type - Total 9 Types 6/0/2/0/0/0/0/1/0/0 Lore% 82 Gallery% 82 Achievement% 59 Wizard Run 0 Options --------- Layout 1 ASCII 0 Keyboard 0 Movement Numpad Keybinds 0 Fullscreen 2 Font 24/Smallcaps Map View 50x40 Zoom Use 1% Tactical HUD 1 Map Filters NONE Filters NONE Steam 1 RUN: d5faa8c9-4ab6-45d1-8976-11970cd98b4e